bitfinex-derivatives/quotes_BTCF0:USTF0_20260107
["timestamp","ask_amount","ask_price","bid_price","bid_amount"]
[1767816314283,0.0932,91318.0,91291.0,0.104165]
[1767816314284,0.09937429,91305.0,91291.0,0.104165]
[1767816314483,0.19226301,91291.0,91279.0,0.07808831]
[1767816314689,0.09288872,91286.0,91274.0,0.0932]
[1767816314892,0.09937429,91285.0,91274.0,0.0932]
[1767816315089,0.19226301,91285.0,91274.0,0.0932]
[1767816315581,0.09288872,91285.0,91274.0,0.104167]
[1767816315782,0.09288872,91285.0,91273.0,0.0932]
[1767816317183,0.10385472,91285.0,91273.0,0.0932]
[1767816318787,0.09288872,91277.0,91268.0,0.07808831]
[1767816318981,0.04415025,91278.0,91268.0,0.0932]
[1767816319194,0.13307484,91290.0,91268.0,0.0932]
[1767816319390,0.010966,91283.0,91268.0,0.0932]
[1767816319592,0.0932,91293.0,91274.0,0.09778434]
[1767816319785,0.010966,91289.0,91275.0,0.09778434]
[1767816320091,0.010966,91289.0,91275.0,0.10875134]
[1767816320290,0.010965,91290.0,91275.0,0.010967]
[1767816320889,0.010966,91288.0,91272.0,0.10875234]
[1767816321380,0.010966,91288.0,91274.0,0.010967]
[1767816321994,0.010966,91288.0,91272.0,0.09778434]
[1767816322186,0.010966,91288.0,91271.0,0.010968]
[1767816322187,0.010966,91283.0,91268.0,0.20195234]
[1767816322585,0.010966,91283.0,91270.0,0.13307484]
[1767816322795,0.010966,91283.0,91271.0,0.0932]
[1767816325697,0.010966,91283.0,91260.0,0.93608]
[1767816325698,0.19226301,91281.0,91262.0,0.010969]
[1767816325894,0.010967,91276.0,91263.0,0.0932]
[1767816326293,0.010967,91276.0,91263.0,0.19098434]
[1767816326494,0.010967,91276.0,91264.0,0.0932]
[1767816326686,0.010967,91276.0,91260.0,0.22024504]
[1767816326687,0.11034229,91269.0,91252.0,0.01097]
[1767816326891,0.19226301,91266.0,91253.0,0.0932]
[1767816327086,0.19226301,91266.0,91242.0,0.1687192]
[1767816327087,0.01097,91253.0,91242.0,0.0115667]
[1767816327400,0.01097,91250.0,91243.0,0.0932]
[1767816327693,0.09288872,91252.0,91233.0,0.010972]
[1767816327899,0.010971,91248.0,91234.0,0.0932]
[1767816328095,0.19226301,91250.0,91235.0,0.010972]
[1767816328603,0.01097,91254.0,91235.0,0.010972]
[1767816328897,0.20323301,91252.0,91235.0,0.010972]
[1767816329087,0.19226301,91249.0,91229.0,0.0021923]
[1767816329293,0.13307484,91250.0,91230.0,0.0932]
[1767816329294,0.09288872,91241.0,91230.0,0.0932]
[1767816330492,0.20323501,91239.0,91230.0,0.0932]
[1767816330702,0.19226301,91239.0,91230.0,0.0932]
[1767816330901,0.09288872,91239.0,91230.0,0.0932]
[1767816331598,0.09937429,91243.0,91229.0,0.0021923]
[1767816332596,0.20615146,91242.0,91229.0,0.0021923]
[1767816332800,0.09752659,91241.0,91229.0,0.0021923]
[1767816332997,0.19518046,91241.0,91229.0,0.0021923]
[1767816333195,0.09752659,91240.0,91229.0,0.0021923]
[1767816333595,0.20615146,91242.0,91229.0,0.0021923]
[1767816333794,0.19518046,91241.0,91229.0,0.0021923]
[1767816334700,0.19518046,91240.0,91229.0,0.0021923]
[1767816334902,0.09752659,91239.0,91229.0,0.0021923]
[1767816335200,0.09752659,91239.0,91229.0,0.0131653]
[1767816335398,0.09765387,91243.0,91232.0,0.010972]
[1767816335793,0.09765387,91243.0,91229.0,0.0131653]
[1767816336800,0.19518046,91243.0,91229.0,0.0131653]
[1767816338087,0.19518046,91243.0,91229.0,0.0021923]
[1767816338295,0.09752659,91253.0,91231.0,0.18723487]
[1767816338494,0.010968,91266.0,91249.0,0.09672008]
[1767816338696,0.09324,91268.0,91253.0,0.01097]
[1767816338897,0.19076659,91268.0,91253.0,0.01097]
[1767816339097,0.09752659,91266.0,91246.0,0.09051479]
[1767816339297,0.09752659,91266.0,91255.0,0.01097]
[1767816339506,0.09765387,91265.0,91252.0,0.01097]
[1767816339695,0.09752659,91264.0,91252.0,0.01097]
[1767816340207,0.19518046,91264.0,91252.0,0.01097]
[1767816341008,0.09752659,91263.0,91252.0,0.01097]
[1767816341706,0.19518046,91263.0,91250.0,0.13307484]
[1767816341905,0.09752659,91262.0,91241.0,0.09672008]
[1767816342307,0.09752659,91262.0,91249.0,0.01097]
[1767816343808,0.19518046,91262.0,91249.0,0.01097]
[1767816344607,0.09752659,91261.0,91249.0,0.01097]
[1767816346208,0.09765387,91287.0,91252.0,0.09672008]
[1767816346407,0.010966,91284.0,91270.0,0.14404284]
[1767816346598,0.10861987,91284.0,91270.0,0.14404284]
[1767816346802,0.10861987,91284.0,91270.0,0.010968]
[1767816347001,0.10861987,91284.0,91267.0,0.010968]
[1767816347202,0.09765387,91281.0,91267.0,0.010968]
[1767816347402,0.09765387,91279.0,91260.0,0.13307484]
[1767816348508,0.09765387,91279.0,91264.0,0.010968]
[1767816350011,0.09765387,91279.0,91266.0,0.010968]
[1767816350908,0.09765387,91279.0,91263.0,0.010969]
[1767816351108,0.09324,91286.0,91263.0,0.010969]
[1767816351109,0.20614746,91278.0,91263.0,0.010969]
[1767816351413,0.09765387,91277.0,91263.0,0.010969]
[1767816351816,0.09765387,91277.0,91266.0,0.010968]
[1767816352005,0.09765387,91277.0,91267.0,0.13307484]
[1767816352205,0.09765387,91277.0,91266.0,0.010968]
[1767816353720,0.09765387,91276.0,91263.0,0.010969]
[1767816354818,0.09765387,91275.0,91263.0,0.010969]
[1767816355013,0.09765387,91274.0,91267.0,0.010968]
[1767816355215,0.010964,91301.0,91260.0,0.13307484]
[1767816355216,0.06548096,91285.0,91266.0,0.09672008]
[1767816355417,0.09324,91291.0,91276.0,0.13307484]
[1767816355619,0.09324,91294.0,91269.0,0.09324]
[1767816355819,0.09324,91295.0,91270.0,0.13307484]
[1767816356014,0.010966,91285.0,91270.0,0.13307484]
[1767816357222,0.09765387,91284.0,91270.0,0.13307484]
[1767816357623,0.09752659,91286.0,91270.0,0.13307484]
[1767816357828,0.09752659,91286.0,91276.0,0.13307484]
[1767816358423,0.09752659,91286.0,91270.0,0.13307484]
[1767816358718,0.09765387,91285.0,91272.0,0.010968]
[1767816358925,0.09765387,91285.0,91270.0,0.13307484]
[1767816359627,0.09765387,91285.0,91273.0,0.010967]
[1767816360214,0.09765387,91285.0,91270.0,0.13307484]
[1767816360419,0.09765387,91290.0,91275.0,0.13307484]
[1767816360619,0.09324,91295.0,91269.0,0.18996008]
[1767816360620,0.09765387,91287.0,91280.0,0.03307484]
[1767816360811,0.09765387,91286.0,91274.0,0.010967]
[1767816361016,0.09765387,91284.0,91271.0,0.010968]
[1767816361217,0.09765387,91284.0,91273.0,0.010967]
[1767816361830,0.09765387,91284.0,91271.0,0.010968]
[1767816362923,0.09324,91295.0,91269.0,0.09324]
[1767816362924,0.10442875,91281.0,91269.0,0.09324]
[1767816363229,0.09346175,91279.0,91270.0,0.13307484]
[1767816363526,0.09346175,91279.0,91269.0,0.104168]
[1767816363828,0.09346175,91279.0,91269.0,0.0932]
[1767816364128,0.09346175,91279.0,91269.0,0.22627484]
[1767816365027,0.09346175,91271.0,91263.0,0.0932]
[1767816365222,0.09346175,91271.0,91253.0,0.9366]
[1767816365223,0.09918082,91272.0,91262.0,0.0932]
[1767816365628,0.09346175,91275.0,91262.0,0.0932]
[1767816366028,0.10442875,91274.0,91262.0,0.0932]
[1767816366224,0.010968,91272.0,91262.0,0.0932]
[1767816367928,0.10442975,91272.0,91260.0,0.13307484]
[1767816368122,0.09346175,91272.0,91260.0,0.22627484]
[1767816368325,0.010967,91275.0,91260.0,0.22627484]
[1767816368525,0.010967,91275.0,91260.0,0.0932]
[1767816370130,0.010968,91273.0,91260.0,0.0932]
[1767816370531,0.010968,91271.0,91260.0,0.0932]
[1767816372820,0.09346175,91276.0,91257.0,0.0931491]
[1767816373025,0.09346175,91276.0,91258.0,0.0932]
[1767816373223,0.010967,91274.0,91261.0,0.0931491]
[1767816373921,0.19264257,91296.0,91275.0,0.1041161]
[1767816374120,0.010965,91293.0,91279.0,0.010967]
[1767816374727,0.09346175,91295.0,91281.0,0.010966]
[1767816374930,0.09346175,91295.0,91278.0,0.010967]
[1767816375131,0.19264257,91295.0,91276.0,0.0932]
[1767816375336,0.09346175,91294.0,91276.0,0.0932]
[1767816375634,0.09346175,91293.0,91276.0,0.0932]
[1767816376234,0.010966,91289.0,91276.0,0.0932]
[1767816378038,0.09346175,91293.0,91276.0,0.0932]
[1767816378737,0.09918082,91286.0,91263.0,0.0931491]
[1767816379042,0.09918082,91286.0,91269.0,0.010968]
[1767816379043,0.010966,91282.0,91269.0,0.010968]
[1767816379733,0.19264257,91285.0,91266.0,0.010968]
[1767816379938,0.010967,91277.0,91264.0,0.0931491]
[1767816380240,0.010967,91273.0,91265.0,0.0932]
[1767816380433,0.010967,91273.0,91264.0,0.0932]
[1767816380632,0.010967,91273.0,91257.0,0.010969]
[1767816380934,0.010967,91273.0,91258.0,0.0932]
[1767816381344,0.010967,91273.0,91259.0,0.010969]
[1767816383531,0.010967,91279.0,91265.0,0.1041171]
[1767816383730,0.010967,91277.0,91265.0,0.1041171]
[1767816384633,0.19264257,91284.0,91265.0,0.0931491]
[1767816384835,0.09346175,91283.0,91264.0,0.0956963]
[1767816385043,0.010967,91276.0,91264.0,0.0956963]
[1767816386743,0.09346175,91283.0,91264.0,0.0956963]
[1767816386744,0.09346175,91283.0,91264.0,0.1066653]
[1767816387142,0.010967,91278.0,91264.0,0.1066653]
[1767816387945,0.0932,91286.0,91266.0,0.0956963]
[1767816388244,0.010967,91279.0,91270.0,0.0956963]
[1767816388448,0.010966,91283.0,91270.0,0.1888454]
[1767816388636,0.010967,91282.0,91270.0,0.1888454]
[1767816389048,0.010967,91282.0,91270.0,0.0931491]
[1767816391144,0.010967,91278.0,91268.0,0.0932]
[1767816391343,0.010967,91277.0,91268.0,0.0932]
[1767816392546,0.19243913,91290.0,91270.0,0.19719275]
[1767816392746,0.19243913,91290.0,91271.0,0.09890218]
[1767816392944,0.010967,91278.0,91271.0,0.09890218]
[1767816393145,0.19243913,91285.0,91270.0,0.0932]
[1767816394150,0.010967,91278.0,91270.0,0.0932]
[1767816394350,0.010967,91276.0,91270.0,0.0932]
[1767816395443,0.010967,91276.0,91267.0,0.0932]
[1767816397454,0.010967,91274.0,91267.0,0.0932]
[1767816397644,0.09744045,91278.0,91260.0,0.010969]
[1767816397846,0.09499868,91279.0,91261.0,0.19210218]
[1767816398043,0.09744045,91282.0,91262.0,0.09890218]
[1767816398345,0.010967,91279.0,91265.0,0.010968]
[1767816399451,0.010967,91281.0,91266.0,0.09890218]
[1767816400155,0.010967,91281.0,91267.0,0.010968]
[1767816400553,0.09744045,91292.0,91271.0,0.19719275]
[1767816400859,0.19243913,91299.0,91280.0,0.10986918]
[1767816401058,0.010965,91294.0,91280.0,0.10986918]
[1767816403260,0.19243913,91299.0,91276.0,0.09890218]
[1767816403261,0.010966,91289.0,91276.0,0.09890218]
[1767816403661,0.010965,91292.0,91277.0,0.10986918]
[1767816403865,0.010965,91290.0,91277.0,0.10986918]
[1767816405260,0.010965,91290.0,91277.0,0.09890218]
[1767816406661,0.19243913,91298.0,91277.0,0.09890218]
[1767816406863,0.09744045,91297.0,91277.0,0.09890218]
[1767816408062,0.010966,91287.0,91275.0,0.09829057]
[1767816408361,0.010966,91285.0,91275.0,0.09829057]
[1767816408563,0.010966,91285.0,91275.0,0.19719275]
[1767816409258,0.010966,91285.0,91276.0,0.0932]
[1767816409464,0.010966,91288.0,91276.0,0.0932]
[1767816409662,0.010966,91288.0,91276.0,0.19210218]
[1767816410165,0.09744045,91280.0,91262.0,0.09890218]
[1767816410357,0.09499868,91281.0,91262.0,0.09890218]
[1767816410358,0.09499868,91281.0,91268.0,0.0932]
[1767816410564,0.09744045,91283.0,91268.0,0.0932]
[1767816410865,0.010967,91277.0,91268.0,0.0932]
[1767816411665,0.010967,91276.0,91268.0,0.0932]
[1767816411867,0.010967,91274.0,91261.0,0.09829057]
[1767816412060,0.010967,91274.0,91262.0,0.0932]
[1767816412260,0.010967,91274.0,91263.0,0.09890218]
[1767816412663,0.010967,91277.0,91263.0,0.09890218]
[1767816413366,0.010967,91275.0,91263.0,0.09890218]
[1767816413567,0.010967,91276.0,91264.0,0.0932]
[1767816413959,0.010967,91276.0,91264.0,0.09890218]
[1767816414162,0.010967,91276.0,91265.0,0.0932]
[1767816414668,0.010967,91276.0,91265.0,0.19210218]
[1767816419767,0.010967,91274.0,91262.0,0.09829057]
[1767816419960,0.010967,91274.0,91265.0,0.0932]
[1767816421054,0.010967,91277.0,91265.0,0.19210218]
[1767816421268,0.010967,91277.0,91266.0,0.09890218]
[1767816421969,0.010967,91275.0,91266.0,0.09890218]
[1767816423166,0.010968,91273.0,91265.0,0.0932]
[1767816423670,0.010968,91273.0,91265.0,0.18702612]
[1767816424367,0.010968,91272.0,91265.0,0.18702612]
[1767816424667,0.010968,91268.0,91263.0,0.0932]
[1767816424971,0.010968,91268.0,91263.0,0.18926659]
[1767816425169,0.010968,91268.0,91263.0,0.28309271]
[1767816425371,0.010968,91268.0,91264.0,0.09606659]
[1767816425563,0.010968,91271.0,91264.0,0.18989271]
[1767816425764,0.010968,91271.0,91265.0,0.09382612]
[1767816426764,0.09779148,91282.0,91265.0,0.09382612]
[1767816427170,0.010968,91272.0,91265.0,0.09382612]
[1767816428669,0.010967,91275.0,91265.0,0.09382612]
[1767816429069,0.010967,91275.0,91266.0,0.09382612]
[1767816430172,0.010967,91273.0,91266.0,0.09382612]
[1767816430772,0.010967,91273.0,91264.0,0.09382612]
[1767816431074,0.010967,91273.0,91264.0,0.18989271]
[1767816431271,0.010967,91273.0,91265.0,0.09382612]
[1767816431872,0.010966,91284.0,91265.0,0.09382612]
[1767816432575,0.010967,91274.0,91269.0,0.09382612]
[1767816432774,0.010967,91274.0,91268.0,0.09606659]
[1767816432972,0.010967,91274.0,91266.0,0.09382612]
[1767816434278,0.010967,91277.0,91266.0,0.09382612]
[1767816434969,0.010967,91274.0,91266.0,0.09382612]
[1767816436179,0.010966,91284.0,91266.0,0.09382612]
[1767816436380,0.010967,91277.0,91266.0,0.09382612]
[1767816436580,0.010967,91274.0,91266.0,0.09382612]
[1767816442383,0.010968,91273.0,91266.0,0.09382612]
[1767816442682,0.010968,91272.0,91266.0,0.09382612]
[1767816444186,0.010968,91271.0,91266.0,0.09382612]
[1767816444386,0.010968,91271.0,91266.0,0.18989271]
[1767816444584,0.010967,91281.0,91266.0,0.18989271]
[1767816444783,0.010968,91270.0,91266.0,0.18989271]
[1767816445480,0.010968,91272.0,91266.0,0.18989271]
[1767816445882,0.13318752,91280.0,91266.0,0.18989271]
[1767816446274,0.010968,91272.0,91266.0,0.18989271]
[1767816448683,0.010967,91275.0,91267.0,0.09382612]
[1767816448876,0.010967,91277.0,91269.0,0.09382612]
[1767816451587,0.010967,91275.0,91269.0,0.09382612]
[1767816452180,0.010967,91274.0,91269.0,0.09382612]
[1767816452382,0.010967,91274.0,91254.0,0.59456]
[1767816452383,0.010969,91261.0,91255.0,0.0932]
[1767816452684,0.010969,91264.0,91252.0,0.09981132]
[1767816452883,0.010969,91264.0,91252.0,0.19415372]
[1767816453084,0.010969,91264.0,91253.0,0.09981132]
[1767816453283,0.010969,91264.0,91254.0,0.09981132]
[1767816453483,0.010968,91267.0,91254.0,0.09981132]
[1767816453882,0.13318752,91270.0,91254.0,0.09981132]
[1767816455182,0.010968,91266.0,91254.0,0.09981132]
[1767816455382,0.010969,91264.0,91254.0,0.09981132]
[1767816457491,0.010969,91262.0,91254.0,0.09981132]
[1767816458395,0.010969,91261.0,91254.0,0.09981132]
[1767816458595,0.14415552,91270.0,91255.0,0.0943424]
[1767816458791,0.010968,91269.0,91255.0,0.0943424]
[1767816458998,0.010969,91257.0,91247.0,0.0932]
[1767816459498,0.13318752,91260.0,91245.0,0.0932]
[1767816459698,0.09345751,91265.0,91245.0,0.0932]
[1767816459996,0.01097,91251.0,91239.0,0.0943424]
[1767816460190,0.01097,91251.0,91240.0,0.0932]
[1767816460498,0.01097,91251.0,91241.0,0.0943424]
[1767816460892,0.01097,91252.0,91243.0,0.09981132]
[1767816467893,0.010969,91259.0,91243.0,0.09981132]
[1767816468199,0.010971,91243.0,91236.0,0.09324]
[1767816468499,0.010971,91245.0,91236.0,0.09324]
[1767816469099,0.010971,91245.0,91234.0,0.09324]
[1767816470099,0.13318752,91253.0,91235.0,0.09981132]
[1767816470100,0.010971,91244.0,91235.0,0.09981132]
[1767816472196,0.13318752,91253.0,91235.0,0.09981132]
[1767816472197,0.010971,91242.0,91235.0,0.09981132]
[1767816472400,0.010972,91238.0,91232.0,0.1875824]
[1767816472601,0.010972,91238.0,91232.0,0.09324]
[1767816473103,0.010972,91238.0,91227.0,0.0943424]
[1767816473900,0.010971,91241.0,91227.0,0.0943424]
[1767816474101,0.010972,91239.0,91227.0,0.0943424]
[1767816474295,0.010971,91242.0,91228.0,0.09981132]
[1767816474501,0.010971,91242.0,91227.0,0.0943424]
[1767816474502,0.010971,91242.0,91229.0,0.10200362]
[1767816474899,0.010971,91242.0,91229.0,0.19634602]
[1767816475094,0.010971,91240.0,91229.0,0.0965347]
[1767816475399,0.010971,91240.0,91229.0,0.0021923]
[1767816475604,0.010971,91240.0,91229.0,0.10200362]
[1767816476898,0.010972,91238.0,91229.0,0.10200362]
[1767816477913,0.01097,91251.0,91229.0,0.0021923]
[1767816477914,0.13318752,91240.0,91229.0,0.0021923]
[1767816478110,0.13318752,91240.0,91224.0,0.09981132]
[1767816478111,0.010972,91234.0,91224.0,0.09981132]
[1767816478311,0.13318752,91240.0,91224.0,0.09981132]
[1767816478819,0.13318752,91240.0,91222.0,0.28739372]
[1767816479009,0.010972,91233.0,91223.0,0.09981132]
[1767816479710,0.010973,91231.0,91223.0,0.09981132]
[1767816480716,0.010973,91230.0,91223.0,0.09981132]
[1767816481102,0.010973,91228.0,91189.0,0.37304]
[1767816481315,0.010973,91228.0,91215.0,0.010974]
[1767816481607,0.010973,91231.0,91215.0,0.010974]
[1767816483211,0.010973,91229.0,91216.0,0.01035723]
[1767816483417,0.010973,91225.0,91216.0,0.01035723]
[1767816484613,0.010973,91228.0,91216.0,0.01035723]
[1767816485413,0.010972,91236.0,91219.0,0.0906551]
[1767816485618,0.09324,91237.0,91219.0,0.0906551]
[1767816485922,0.09062234,91254.0,91227.0,0.13318752]
[1767816486212,0.010971,91242.0,91228.0,0.0906551]
[1767816486428,0.09062234,91246.0,91226.0,0.010973]
[1767816486620,0.010971,91240.0,91226.0,0.010973]
[1767816487311,0.010971,91240.0,91223.0,0.010973]
[1767816487510,0.010972,91234.0,91222.0,0.0906551]
[1767816488219,0.010972,91232.0,91218.0,0.104214]
[1767816489521,0.09972621,91239.0,91218.0,0.104214]
[1767816490124,0.010972,91236.0,91220.0,0.010974]
[1767816490523,0.010972,91235.0,91220.0,0.010974]
[1767816491213,0.09972621,91239.0,91219.0,0.09476244]
[1767816491920,0.010972,91237.0,91224.0,0.010973]
[1767816492418,0.09972621,91239.0,91219.0,0.09476244]
[1767816492622,0.010973,91230.0,91219.0,0.09476244]
[1767816493519,0.010973,91230.0,91218.0,0.09324]
[1767816493928,0.010972,91232.0,91219.0,0.010974]
[1767816496318,0.010973,91231.0,91217.0,0.010974]
[1767816496524,0.09972621,91235.0,91217.0,0.010974]
[1767816496525,0.010973,91230.0,91217.0,0.010974]
[1767816496917,0.010973,91230.0,91218.0,0.010974]
[1767816497834,0.010972,91232.0,91219.0,0.010974]
[1767816498024,0.010972,91232.0,91215.0,0.09476244]
[1767816498515,0.010972,91238.0,91216.0,0.09476244]
[1767816498719,0.010972,91239.0,91226.0,0.010973]
[1767816499127,0.010972,91239.0,91227.0,0.010973]
[1767816500214,0.010972,91237.0,91224.0,0.010973]
[1767816501228,0.010972,91236.0,91224.0,0.010973]
[1767816503022,0.010972,91235.0,91224.0,0.010973]
[1767816503725,0.010972,91237.0,91224.0,0.010973]
[1767816503927,0.010972,91236.0,91224.0,0.010973]
[1767816504531,0.09972621,91239.0,91224.0,0.010973]
[1767816504834,0.010972,91235.0,91222.0,0.010974]
[1767816506138,0.010972,91235.0,91223.0,0.010973]
[1767816508135,0.09972621,91239.0,91218.0,0.09476244]
[1767816508334,0.19967498,91238.0,91220.0,0.010974]
[1767816508528,0.010973,91227.0,91214.0,0.104214]
[1767816508942,0.010973,91227.0,91216.0,0.010974]
[1767816510131,0.010973,91230.0,91214.0,0.18800244]
[1767816510336,0.010973,91230.0,91215.0,0.09476244]
[1767816510838,0.010972,91232.0,91219.0,0.010974]
[1767816511229,0.19967498,91237.0,91219.0,0.010974]
[1767816511433,0.09972621,91236.0,91219.0,0.010974]
[1767816511737,0.09972621,91235.0,91215.0,0.10573644]
[1767816511936,0.19426579,91235.0,91215.0,0.010974]
[1767816512142,0.09453958,91221.0,91205.0,9.2e-07]
[1767816512352,0.09860285,91208.0,91190.0,0.010977]
[1767816512639,0.09860285,91208.0,91180.0,0.1248785]
[1767816512640,0.19314243,91204.0,91189.0,0.010978]
[1767816512841,0.09860285,91203.0,91193.0,0.010977]
[1767816513428,9.182e-05,91202.0,91193.0,0.010977]
[1767816513637,9.182e-05,91202.0,91190.0,0.010977]
[1767816513941,0.10957885,91201.0,91188.0,0.09324]
[1767816514124,0.09860285,91200.0,91176.0,0.010979]
[1767816514330,0.10957985,91198.0,91177.0,0.09324]
[1767816514529,9.182e-05,91202.0,91181.0,0.00187326]
[1767816514740,9.182e-05,91202.0,91190.0,0.010977]
[1767816514942,9.182e-05,91202.0,91192.0,0.010977]
[1767816515243,9.182e-05,91202.0,91194.0,0.010977]
[1767816515638,9.182e-05,91202.0,91191.0,0.010977]
[1767816516031,9.182e-05,91202.0,91179.0,0.010979]
[1767816516228,0.09860285,91216.0,91211.0,0.010975]
[1767816516434,0.09328,91225.0,91203.0,0.0928173]
[1767816516745,0.09328,91224.0,91203.0,0.0928173]
[1767816517745,0.09328,91224.0,91216.0,0.010974]
[1767816517936,0.09328,91233.0,91218.0,0.0928173]
[1767816518445,0.09328,91233.0,91225.0,0.010973]
[1767816518739,0.09328,91233.0,91208.0,0.09328]
[1767816518740,0.09328,91233.0,91219.0,0.010974]
[1767816518944,0.09328,91233.0,91221.0,0.010974]
[1767816521148,0.09328,91233.0,91223.0,0.010973]
[1767816521643,0.09328,91233.0,91225.0,0.010973]
[1767816521946,0.09328,91233.0,91223.0,0.010973]
[1767816522749,0.09328,91233.0,91220.0,0.010974]
[1767816523242,0.010972,91235.0,91221.0,0.1037913]
[1767816523450,0.010972,91235.0,91210.0,0.010975]
[1767816523451,0.09860285,91249.0,91236.0,0.010972]
[1767816523636,0.09328,91252.0,91238.0,0.010972]
[1767816523835,0.09328,91252.0,91230.0,0.0928173]
[1767816523836,0.09328,91252.0,91241.0,0.010971]
[1767816524234,0.09328,91252.0,91238.0,0.010972]
[1767816524651,0.10425,91252.0,91235.0,0.010972]
[1767816525643,0.10425,91252.0,91237.0,0.010972]
[1767816526450,0.10425,91252.0,91237.0,0.0087797]
[1767816527041,0.10425,91252.0,91234.0,0.010972]
[1767816527349,0.01097,91250.0,91234.0,0.010972]
[1767816527542,0.01097,91250.0,91236.0,0.010972]
[1767816527936,0.19188285,91252.0,91236.0,0.010972]
[1767816528750,0.09860285,91251.0,91236.0,0.010972]
[1767816529254,0.10957285,91251.0,91236.0,0.010972]
[1767816531357,0.10957285,91249.0,91233.0,0.010972]
[1767816531558,0.10957285,91249.0,91235.0,0.010972]
[1767816533252,0.10957285,91249.0,91237.0,0.010972]
[1767816533456,0.09860285,91249.0,91237.0,0.010972]
[1767816534159,0.09860285,91249.0,91229.0,0.08817883]
[1767816534453,0.09328,91252.0,91232.0,0.08817883]
[1767816535457,0.10957185,91261.0,91240.0,0.08806506]
[1767816535752,0.10079443,91259.0,91245.0,0.010971]
[1767816535959,0.09860285,91258.0,91245.0,0.010971]
[1767816536346,0.10957185,91258.0,91242.0,0.010971]
[1767816536548,0.01097,91256.0,91242.0,0.010971]
[1767816536842,0.09860285,91258.0,91244.0,0.010971]
[1767816537241,0.10770016,91259.0,91240.0,0.09324]
[1767816537242,0.10957185,91257.0,91241.0,0.010971]
[1767816537453,0.10957285,91255.0,91241.0,0.010971]
[1767816538356,0.09860285,91255.0,91243.0,0.010971]
[1767816538557,0.09860285,91255.0,91245.0,0.010971]
[1767816539257,0.10957285,91255.0,91244.0,0.010971]
[1767816539457,0.09860285,91255.0,91244.0,0.010971]
[1767816539959,0.09860285,91255.0,91240.0,0.09324]
[1767816540154,0.10957285,91254.0,91242.0,0.010971]
[1767816541557,0.09587096,91252.0,91240.0,0.104211]
[1767816542656,0.01097,91251.0,91240.0,0.104211]
[1767816542856,0.10848168,91251.0,91240.0,0.104211]
[1767816543164,0.09751168,91251.0,91240.0,0.104211]
[1767816543764,0.09751168,91251.0,91241.0,0.010971]
[1767816544257,0.09813708,91246.0,91236.0,0.010972]
[1767816544463,0.09751168,91243.0,91235.0,0.09324]
[1767816545059,0.09751168,91243.0,91238.0,0.010972]
[1767816545260,0.09813708,91248.0,91239.0,0.010971]
[1767816545462,0.09813708,91248.0,91241.0,0.010971]
[1767816546056,0.09813708,91248.0,91238.0,0.010972]
[1767816547563,0.20661976,91246.0,91235.0,0.09324]
[1767816547766,0.20661976,91246.0,91236.0,0.010972]
[1767816547767,0.19564876,91246.0,91236.0,0.010972]
[1767816547960,0.19564876,91246.0,91235.0,0.09324]
[1767816548162,0.09813708,91245.0,91235.0,0.09324]
[1767816548754,0.010971,91244.0,91235.0,0.09324]
[1767816548960,0.09813708,91243.0,91235.0,0.09324]
[1767816549462,0.09751168,91244.0,91235.0,0.09324]
[1767816550859,0.09751168,91244.0,91230.0,0.13326535]
[1767816551060,0.19564876,91228.0,91217.0,0.09324]
[1767816551265,0.09751168,91225.0,91217.0,0.09324]
[1767816551571,0.09813708,91223.0,91208.0,0.09771655]
[1767816551772,0.09813708,91223.0,91208.0,0.09324]
[1767816551956,0.09813708,91223.0,91207.0,5.5e-07]
[1767816552158,0.09751168,91207.0,91199.0,0.00219302]
[1767816552358,0.19564876,91203.0,91191.0,0.08582247]
[1767816552563,0.19564876,91202.0,91191.0,0.08582247]
[1767816552868,0.19564876,91202.0,91188.0,0.09324]
[1767816553069,0.19564876,91201.0,91184.0,0.010978]
[1767816553259,0.09813708,91197.0,91183.0,0.09324]
[1767816553686,0.20662576,91193.0,91175.0,0.010979]
[1767816553867,0.19564876,91190.0,91176.0,0.09324]
[1767816554080,0.010978,91186.0,91169.0,0.00219374]
[1767816554275,0.20662676,91189.0,91172.0,0.01098]
[1767816554670,0.19564876,91189.0,91172.0,0.01098]
[1767816554875,0.19564876,91189.0,91171.0,0.09324]
[1767816554876,0.09751168,91189.0,91171.0,0.09324]
[1767816555076,0.010978,91188.0,91171.0,0.09324]
[1767816555276,0.09751168,91189.0,91171.0,0.10422]
[1767816557283,0.010978,91188.0,91171.0,0.09324]
[1767816557481,0.19564876,91188.0,91171.0,0.09324]
[1767816557682,0.010979,91181.0,91171.0,0.09324]
[1767816557986,0.19564876,91183.0,91171.0,0.09324]
[1767816558690,0.19564876,91179.0,91169.0,0.00219374]
[1767816559386,0.010979,91180.0,91169.0,0.00219374]
[1767816559387,0.09751168,91178.0,91169.0,0.00219374]
[1767816559593,0.19564876,91178.0,91169.0,0.00219374]
[1767816559789,0.09751168,91178.0,91169.0,0.00219374]
[1767816561285,0.19564876,91178.0,91169.0,0.00219374]
[1767816565094,0.19564876,91175.0,91164.0,0.09328]
[1767816565299,0.09813708,91168.0,91157.0,0.09328]
[1767816565498,0.09751168,91167.0,91150.0,0.13326535]
[1767816565690,0.09813708,91166.0,91150.0,0.13326535]
[1767816566389,7.908e-05,91165.0,91151.0,0.010982]
[1767816566991,0.010981,91164.0,91148.0,0.104262]
[1767816567190,7.908e-05,91165.0,91148.0,0.104262]
[1767816567396,7.908e-05,91165.0,91150.0,0.010982]
[1767816567585,0.19572784,91165.0,91150.0,0.14424735]
[1767816567998,0.19564876,91162.0,91152.0,0.010982]
[1767816568296,0.19564876,91162.0,91149.0,0.010982]
[1767816569291,0.09813708,91146.0,91131.0,0.104265]
[1767816569492,0.09751168,91142.0,91131.0,0.09028]
[1767816569693,0.00010792,91141.0,91128.0,0.010985]
[1767816570000,0.00010792,91141.0,91123.0,0.09328]
[1767816570293,0.00010792,91141.0,91134.0,0.010984]
[1767816570498,0.09328,91146.0,91130.0,0.14425035]
[1767816570899,0.19564876,91148.0,91130.0,0.13326535]
[1767816571197,0.010983,91143.0,91124.0,0.09068259]
[1767816571591,0.010983,91141.0,91125.0,0.010985]
[1767816571790,0.010983,91141.0,91124.0,0.09068259]
[1767816571992,0.10969276,91144.0,91124.0,0.10166759]